bitfinex/quotes_BTCUSD_20220731
["timestamp","ask_amount","ask_price","bid_price","bid_amount"]
[1659292174024,0.035,23635.0,23633.0,0.07889466]
[1659292174261,0.10906215,23646.0,23634.0,0.40725733]
[1659292174498,0.38004847,23645.0,23642.0,0.03246995]
[1659292174734,0.38004847,23645.0,23629.0,0.05990316]
[1659292174735,1.00269154,23635.0,23629.0,0.05990316]
[1659292174963,1.00269154,23635.0,23631.0,0.45386141]
[1659292175199,0.035,23634.0,23628.0,0.0011]
[1659292175454,1.00269154,23635.0,23632.0,0.40725733]
[1659292175696,1.00269154,23635.0,23634.0,0.40725733]
[1659292175934,1.0,23635.0,23634.0,0.4078427]
[1659292176160,0.00361472,23649.0,23636.0,0.04093168]
[1659292176386,0.50361472,23649.0,23641.0,0.05102241]
[1659292176647,0.0042895,23644.0,23642.0,0.40725733]
[1659292176903,0.0042895,23644.0,23637.0,0.3]
[1659292176904,0.40725733,23643.0,23630.0,0.05939319]
[1659292177136,0.68172,23642.0,23633.0,0.40725733]
[1659292177365,0.65,23642.0,23636.0,0.40725733]
[1659292177597,0.65,23642.0,23637.0,0.40725733]
[1659292177840,0.65,23642.0,23639.0,0.05079872]
[1659292178069,0.05,23638.0,23619.0,0.9665]
[1659292178343,0.05720008,23636.0,23625.0,0.1]
[1659292178581,0.05720008,23636.0,23619.0,1.02332507]
[1659292178582,0.4978,23634.0,23628.0,0.40725733]
[1659292178814,0.4978,23636.0,23632.0,0.04044506]
[1659292179058,0.4978,23633.0,23632.0,0.40725733]
[1659292179298,0.4978,23634.0,23633.0,0.0467333]
[1659292179538,0.4978,23634.0,23633.0,0.45399063]
[1659292180033,0.40725733,23634.0,23626.0,0.14902201]
[1659292180273,0.05,23628.0,23627.0,0.40725733]
[1659292180779,0.05,23628.0,23615.0,0.0022]
[1659292180780,0.40725733,23631.0,23618.0,0.1]
[1659292181016,0.3,23643.0,23622.0,0.40725733]
[1659292181017,0.40725733,23636.0,23622.0,0.40725733]
[1659292181250,0.05,23642.0,23618.0,0.095]
[1659292181251,0.05,23633.0,23618.0,0.095]
[1659292181510,0.6794103,23634.0,23613.0,0.05113353]
[1659292181511,0.05,23629.0,23613.0,0.05113353]
[1659292181783,1.55,23630.0,23619.0,0.052872]
[1659292181784,0.65,23630.0,23619.0,0.052872]
[1659292182014,0.65,23630.0,23620.0,0.0439021]
[1659292182257,0.65,23630.0,23623.0,0.14425306]
[1659292182496,0.65,23630.0,23623.0,0.24999006]
[1659292182733,0.85343893,23629.0,23628.0,0.4021312]
[1659292182983,0.85343893,23629.0,23628.0,0.70725733]
[1659292183459,0.85343893,23629.0,23628.0,0.40725733]
[1659292184156,0.85343893,23629.0,23628.0,0.39725733]
[1659292184388,0.85343893,23629.0,23628.0,0.40725733]
[1659292184622,0.85343893,23629.0,23623.0,0.205741]
[1659292184623,0.55,23628.0,23623.0,0.1]
[1659292184870,0.85343893,23629.0,23627.0,0.40725733]
[1659292185108,0.4978,23628.0,23627.0,0.40725733]
[1659292185349,0.45,23624.0,23613.0,0.211559]
[1659292185638,0.03175,23623.0,23615.0,0.27764962]
[1659292185919,0.4978,23620.0,23615.0,0.27764962]
[1659292186122,0.85343893,23629.0,23607.0,0.152877]
[1659292186123,1.35123893,23629.0,23617.0,0.40725733]
[1659292186385,0.304152,23628.0,23622.0,0.40725733]
[1659292186616,0.85706834,23629.0,23626.0,0.1]
[1659292186859,0.85706834,23629.0,23627.0,0.40725733]
[1659292186860,0.90706834,23629.0,23627.0,0.40725733]
[1659292187088,0.4978,23628.0,23627.0,0.40725733]
[1659292187320,0.4778,23628.0,23627.0,0.40725733]
[1659292187545,0.50928,23628.0,23627.0,0.40725733]
[1659292187785,0.50928,23628.0,23626.0,0.40718031]
[1659292188000,0.09275,23627.0,23626.0,0.40218031]
[1659292188281,0.09275,23627.0,23626.0,0.40725733]
[1659292188282,0.05,23627.0,23626.0,0.40725733]
[1659292188537,1.4778,23628.0,23626.0,0.40725733]
[1659292188771,0.08148,23627.0,23626.0,0.40725733]
[1659292189004,1.4778,23628.0,23627.0,0.36854575]
[1659292189005,1.0,23628.0,23627.0,0.36854575]
[1659292189218,1.0,23628.0,23627.0,0.81761615]
[1659292189443,0.75119515,23629.0,23628.0,0.05]
[1659292189663,0.0273167,23629.0,23628.0,0.98584033]
[1659292189936,0.6794103,23634.0,23628.0,1.26721396]
[1659292190169,0.45771697,23634.0,23633.0,0.40725733]
[1659292190415,0.03272,23648.0,23637.0,0.40725733]
[1659292190416,0.4778,23647.0,23637.0,0.40725733]
[1659292190651,0.001,23648.0,23646.0,0.40725733]
[1659292190883,0.4,23647.0,23641.0,0.40725733]
[1659292191141,0.37824129,23645.0,23641.0,0.40725733]
[1659292191360,0.37824129,23645.0,23642.0,0.02967]
[1659292191586,0.05,23644.0,23639.0,0.40725733]
[1659292191817,0.4778,23640.0,23639.0,0.40725733]
[1659292192525,0.50928,23640.0,23637.0,0.40725733]
[1659292192753,0.37824129,23645.0,23640.0,0.95]
[1659292192754,0.4778,23643.0,23640.0,0.95]
[1659292192982,0.4778,23643.0,23639.0,0.40725733]
[1659292192983,0.4678,23643.0,23642.0,0.40725733]
[1659292193216,0.37824129,23645.0,23642.0,0.40725733]
[1659292193508,0.4678,23653.0,23645.0,0.15839]
[1659292193744,0.06763724,23656.0,23654.0,0.0641]
[1659292193963,0.5178,23660.0,23655.0,0.43896733]
[1659292194197,0.49928,23656.0,23654.0,0.0641]
[1659292194411,0.05,23656.0,23655.0,0.40725733]
[1659292194625,0.05,23656.0,23655.0,0.40225733]
[1659292194853,0.0817,23656.0,23654.0,0.47135733]
[1659292195089,0.0317,23656.0,23654.0,0.0631]
[1659292195332,0.001,23657.0,23654.0,0.47035733]
[1659292195558,0.001,23657.0,23655.0,0.40725733]
[1659292195778,0.001,23657.0,23656.0,0.40725733]
[1659292196057,0.4688,23657.0,23656.0,0.70725733]
[1659292196313,0.4688,23657.0,23656.0,0.40725733]
[1659292196532,0.46868821,23657.0,23656.0,0.40725733]
[1659292197020,0.46868821,23657.0,23654.0,0.31031705]
[1659292197021,0.50336137,23657.0,23654.0,0.31031705]
[1659292197302,0.00088821,23657.0,23655.0,0.31007916]
[1659292197534,0.00088821,23657.0,23656.0,0.65322564]
[1659292197762,0.46868821,23657.0,23656.0,0.65322564]
[1659292197991,0.075,23664.0,23656.0,0.68492564]
[1659292198217,0.001,23665.0,23663.0,0.40725733]
[1659292198457,0.001,23667.0,23664.0,0.43660637]
[1659292198685,0.001,23667.0,23665.0,0.40725733]
[1659292198939,0.001,23667.0,23658.0,0.05410032]
[1659292198940,0.31868821,23665.0,23658.0,0.05410032]
[1659292199179,0.02769195,23665.0,23659.0,0.40725733]
[1659292199412,0.31868821,23660.0,23659.0,0.40725733]
[1659292199658,0.36868821,23660.0,23659.0,0.40725733]
[1659292199900,0.31368821,23662.0,23659.0,0.45167131]
[1659292200116,0.001,23667.0,23661.0,0.72401333]
[1659292200361,0.03169,23670.0,23663.0,0.4599477]
[1659292200588,0.5,23674.0,23659.0,0.14986488]
[1659292200589,0.40725733,23669.0,23659.0,0.14986488]
[1659292200818,0.03169,23668.0,23660.0,0.46193302]
[1659292201049,0.05,23667.0,23661.0,0.40725733]
[1659292201327,0.40725733,23666.0,23659.0,0.1]
[1659292201558,0.40725733,23665.0,23654.0,0.15945304]
[1659292201776,0.03169,23664.0,23659.0,0.40725733]
[1659292202010,0.05,23661.0,23651.0,0.10397538]
[1659292202238,0.05,23661.0,23651.0,0.049]
[1659292202239,0.40725733,23659.0,23651.0,0.049]
[1659292202514,0.06637316,23658.0,23651.0,0.049]
[1659292202747,0.0317,23658.0,23647.0,0.105658]
[1659292202982,0.04731894,23669.0,23661.0,0.05]
[1659292203214,0.43894733,23668.0,23661.0,0.05]
[1659292203428,0.71140933,23667.0,23661.0,0.05]
[1659292203656,0.1,23662.0,23661.0,0.035]
[1659292203876,0.0317,23662.0,23661.0,0.035]
[1659292204142,0.304152,23662.0,23661.0,0.035]
[1659292204363,0.304152,23662.0,23648.0,0.047]
[1659292204364,0.88895733,23662.0,23648.0,0.047]
[1659292204601,0.304152,23664.0,23648.0,0.40725733]
[1659292204602,0.30368821,23650.0,23648.0,0.40725733]
[1659292204830,0.30368821,23650.0,23644.0,0.03172]
[1659292204831,0.33539821,23649.0,23638.0,0.03173]
[1659292205097,0.30368821,23647.0,23645.0,0.40725733]
[1659292205313,0.25560961,23652.0,23646.0,0.16795]
[1659292205533,0.25560961,23652.0,23642.0,0.105688]
[1659292205534,0.30368821,23649.0,23643.0,0.211355]
[1659292205801,0.30368821,23647.0,23643.0,0.211355]
[1659292206016,0.35368821,23644.0,23640.0,0.045]
[1659292206250,0.091,23644.0,23642.0,0.03552]
[1659292206505,0.35368821,23644.0,23641.0,0.40725733]
[1659292206741,0.05,23644.0,23642.0,0.04083]
[1659292206976,0.36608138,23643.0,23637.0,0.04949662]
[1659292207205,0.091,23644.0,23642.0,0.0285609]
[1659292207206,0.35368821,23644.0,23642.0,0.0285609]
[1659292207654,0.35368821,23644.0,23640.0,0.05789628]
[1659292207898,0.30368821,23650.0,23645.0,0.05]
[1659292208167,0.105,23660.0,23645.0,0.05]
[1659292208168,0.30368821,23653.0,23646.0,0.04751276]
[1659292208391,0.30368821,23658.0,23653.0,0.05]
[1659292208616,0.105,23660.0,23651.0,0.05181046]
[1659292208847,0.13269195,23660.0,23654.0,0.40725733]
[1659292209189,0.105,23660.0,23659.0,0.40725733]
[1659292209416,0.105,23660.0,23659.0,0.41125733]
[1659292209652,0.105,23660.0,23659.0,0.53645733]
[1659292209888,0.105,23660.0,23659.0,0.53613139]
[1659292210123,0.44038821,23660.0,23651.0,0.03171]
[1659292210354,0.44038821,23660.0,23643.0,0.057]
[1659292210355,0.35368821,23652.0,23643.0,0.07904035]
[1659292210605,0.74311933,23651.0,23643.0,0.057]
[1659292210835,0.40725733,23650.0,23643.0,0.057]
[1659292211074,0.40725733,23650.0,23646.0,0.2845]
[1659292211075,0.03171,23649.0,23646.0,0.2845]
[1659292211303,0.0317,23659.0,23647.0,0.04310294]
[1659292211540,0.0317,23659.0,23646.0,0.2845]
[1659292211541,0.05,23651.0,23646.0,0.18659291]
[1659292212019,0.05,23655.0,23646.0,0.18659291]
[1659292212259,0.45,23658.0,23646.0,0.18659291]
[1659292212260,0.05,23651.0,23646.0,0.18659291]
[1659292212496,0.03171,23650.0,23646.0,0.18659291]
[1659292212750,0.05,23655.0,23647.0,0.00367406]
[1659292212981,0.00044361,23650.0,23647.0,0.00367406]
[1659292213442,0.00044361,23650.0,23648.0,0.40725733]
[1659292213666,3.61e-06,23650.0,23649.0,0.70725733]
[1659292213905,3.61e-06,23650.0,23649.0,0.76195186]
[1659292214148,3.61e-06,23650.0,23649.0,0.46195186]
[1659292214379,3.61e-06,23650.0,23649.0,0.40725733]
[1659292214610,3.61e-06,23650.0,23649.0,0.46183781]
[1659292215350,0.30369182,23650.0,23649.0,0.46183781]
[1659292215574,0.30369182,23650.0,23649.0,0.40725733]
[1659292215830,3.61e-06,23650.0,23649.0,0.46502127]
[1659292216775,3.61e-06,23650.0,23649.0,0.49673127]
[1659292216999,3.61e-06,23650.0,23649.0,0.46502127]
[1659292217717,0.03100272,23650.0,23649.0,0.46002127]
[1659292217947,0.03100272,23650.0,23646.0,0.19825445]
[1659292217948,0.05,23647.0,23646.0,0.19825445]
[1659292218172,0.29868821,23647.0,23646.0,0.19825445]
[1659292218430,0.29868821,23647.0,23646.0,0.18825445]
[1659292218648,0.32968732,23647.0,23646.0,0.18825445]
[1659292218871,0.29868821,23647.0,23646.0,0.64637539]
[1659292219131,3.61e-06,23650.0,23646.0,0.64637539]
[1659292219358,0.34868821,23648.0,23646.0,0.58551178]
[1659292219578,0.34868821,23648.0,23647.0,0.41093139]
[1659292219849,3.61e-06,23650.0,23647.0,1.41260393]
[1659292220079,0.37116821,23648.0,23646.0,0.17825445]
[1659292220314,0.16869195,23647.0,23646.0,0.17825445]
[1659292220537,0.041,23647.0,23646.0,0.58551178]
[1659292221021,0.041,23647.0,23646.0,1.02761178]
[1659292221480,0.041,23647.0,23646.0,0.86101887]
[1659292221739,0.041,23647.0,23646.0,0.4574356]
[1659292221971,0.041,23647.0,23646.0,0.45376154]
[1659292222195,0.29868821,23648.0,23646.0,0.86101887]
[1659292222424,0.97266787,23649.0,23648.0,0.4421]
[1659292222644,0.23701966,23649.0,23648.0,0.88107733]
[1659292222873,0.29868821,23653.0,23649.0,1.2921]
[1659292223111,0.29868821,23653.0,23652.0,0.9666]
[1659292223347,0.29868821,23653.0,23652.0,1.81595733]
[1659292223607,0.29868821,23653.0,23652.0,2.11963139]
[1659292223821,0.03148,23658.0,23653.0,0.4421]
[1659292223822,0.29868821,23658.0,23653.0,0.4421]
[1659292224056,0.105,23660.0,23658.0,0.4421]
[1659292224491,0.105,23660.0,23659.0,1.14935733]
[1659292224730,0.105,23660.0,23659.0,1.50153839]
[1659292225194,0.40368821,23660.0,23659.0,0.85303139]
[1659292225423,0.47616821,23660.0,23659.0,0.85303139]
[1659292225649,0.40368821,23660.0,23659.0,0.85303139]
[1659292225875,0.105,23660.0,23659.0,1.15303139]
[1659292226105,0.105,23660.0,23659.0,1.26012034]
[1659292226340,0.29468821,23670.0,23663.0,0.4421]
[1659292226565,0.29468821,23670.0,23667.0,0.4421]
[1659292226781,0.03148,23670.0,23669.0,1.4101]
[1659292227035,0.36716821,23670.0,23669.0,1.81735733]
[1659292227274,0.001,23672.0,23670.0,0.4421]
[1659292227498,0.001,23672.0,23671.0,2.05490333]
[1659292227731,0.001,23672.0,23671.0,2.10857739]
[1659292227958,0.2267455,23675.0,23671.0,2.10857739]
[1659292227959,0.2267455,23675.0,23672.0,0.4421]
[1659292228177,0.2267455,23675.0,23674.0,1.45509378]
[1659292228424,0.2267455,23675.0,23674.0,0.8896943]
[1659292228673,0.1867455,23675.0,23672.0,0.1]
[1659292228896,0.1867455,23675.0,23673.0,0.40725733]
[1659292229135,0.1867455,23675.0,23674.0,1.36279733]
[1659292229375,0.1867455,23675.0,23674.0,1.89346857]
[1659292229634,0.1867455,23675.0,23674.0,1.31178857]
[1659292229635,0.18622036,23675.0,23674.0,1.31178857]
[1659292229856,3.6e-07,23675.0,23674.0,1.34714263]
[1659292230075,0.03167,23683.0,23678.0,0.4421]
[1659292230306,0.03167,23683.0,23678.0,0.9683]
[1659292230307,0.40725733,23683.0,23678.0,0.9683]
[1659292230524,3.6e-07,23685.0,23682.0,0.9683]
[1659292230744,3.6e-07,23685.0,23683.0,0.4569175]
[1659292231040,0.001,23688.0,23684.0,0.75725733]
[1659292231314,0.001,23688.0,23687.0,0.45599764]
[1659292231532,0.001,23688.0,23687.0,0.40725733]
[1659292231769,0.001,23688.0,23687.0,0.46196925]
[1659292231994,0.001,23688.0,23687.0,0.75696925]
[1659292232243,0.001,23695.0,23688.0,0.05]
[1659292232467,0.001,23695.0,23694.0,1.81735733]
[1659292232689,0.001,23699.0,23694.0,2.15702688]
[1659292232938,1.0,23702.0,23700.0,0.4421]
[1659292233179,1.0,23702.0,23701.0,0.84935733]
[1659292233670,0.001,23704.0,23702.0,0.95426]
[1659292233918,0.001,23710.0,23705.0,0.4421]
[1659292234157,0.5454677,23715.0,23709.0,1.37555733]
[1659292234158,0.17462,23714.0,23709.0,1.37555733]
[1659292234408,0.12454844,23714.0,23713.0,0.84935733]
[1659292234643,0.004,23720.0,23714.0,0.4421]
[1659292234977,0.054,23720.0,23719.0,1.00954812]
[1659292235250,0.054,23720.0,23711.0,0.1]
[1659292235251,0.03499911,23720.0,23714.0,0.968]
[1659292235481,0.64724503,23720.0,23715.0,0.3]
[1659292235717,0.16793306,23722.0,23720.0,0.7]
[1659292235718,0.1113677,23722.0,23720.0,0.7]
[1659292235959,0.22347963,23726.0,23721.0,0.45934499]
[1659292235960,0.11588,23726.0,23721.0,0.45934499]
[1659292236195,0.05,23722.0,23710.0,0.04153049]
[1659292236431,0.05,23722.0,23706.0,1.0303]
[1659292236432,0.03162,23721.0,23711.0,0.45623338]
[1659292236677,0.13920963,23723.0,23715.0,0.9683]
[1659292236678,0.17081963,23723.0,23715.0,0.9683]
[1659292236910,0.02661,23723.0,23720.0,0.01166154]
[1659292237157,0.03099911,23722.0,23720.0,0.01166154]
[1659292237385,0.380762,23723.0,23720.0,0.01166154]
[1659292237386,0.304152,23721.0,23720.0,0.13686154]
[1659292237620,0.16581963,23723.0,23720.0,0.13686154]
[1659292237872,0.29710384,23726.0,23722.0,1.89420951]
[1659292238102,0.24326877,23726.0,23725.0,0.84935733]
[1659292238338,0.1693049,23734.0,23733.0,0.05]
[1659292238626,0.22574667,23740.0,23738.0,0.05]
[1659292238627,0.16930055,23740.0,23738.0,0.05]
[1659292238860,0.19752239,23742.0,23741.0,0.8]
[1659292239120,0.29547116,23751.0,23742.0,0.6]
[1659292239121,0.19752239,23743.0,23742.0,0.6]
[1659292239347,0.19752239,23743.0,23739.0,0.40725733]
[1659292239348,0.32694953,23740.0,23739.0,0.40725733]
[1659292239602,0.31194953,23740.0,23739.0,0.40725733]
[1659292239862,0.0441369,23751.0,23742.0,0.00493577]
[1659292240072,0.0441369,23751.0,23740.0,0.65493577]
[1659292240073,0.03148,23744.0,23740.0,0.65493577]
[1659292240307,0.40725733,23750.0,23741.0,0.00367406]
[1659292240308,0.5,23747.0,23741.0,0.00367406]
[1659292240543,0.40725733,23746.0,23741.0,0.00367406]
[1659292240792,0.43494928,23746.0,23741.0,0.00367406]
[1659292241023,0.40725733,23745.0,23741.0,0.00367406]
[1659292241260,0.03148,23743.0,23741.0,0.00367406]
[1659292241494,0.03158,23748.0,23742.0,0.17288577]
[1659292241739,0.40725733,23749.0,23743.0,1.0]
[1659292241958,0.40725733,23749.0,23748.0,0.4]
[1659292242200,0.06247911,23749.0,23748.0,0.1252]
[1659292242467,0.52759727,23747.0,23735.0,0.28844381]
[1659292242674,0.03148,23742.0,23737.0,0.1]
[1659292242922,0.52759727,23747.0,23739.0,0.00493577]
[1659292243176,0.03158,23750.0,23742.0,0.75493577]
[1659292243402,0.03157,23754.0,23742.0,0.75]
[1659292243643,0.01661085,23755.0,23743.0,0.00493577]
[1659292243644,0.04818085,23755.0,23743.0,0.00493577]
[1659292243881,0.04818085,23755.0,23742.0,0.42165746]
[1659292243882,0.04506423,23743.0,23742.0,0.0461505]
[1659292244107,0.04506423,23743.0,23733.0,0.9779]
[1659292244108,0.04506423,23741.0,23733.0,0.1251]
[1659292244350,0.04506423,23741.0,23729.0,0.055]
[1659292244351,0.12769195,23734.0,23729.0,0.055]
[1659292244577,0.40725733,23737.0,23730.0,0.40725733]
[1659292244803,0.04506423,23735.0,23730.0,0.40725733]
[1659292245046,0.40725733,23738.0,23730.0,0.50516489]
[1659292245264,0.40725733,23737.0,23731.0,0.04448418]
[1659292245524,0.0316,23736.0,23730.0,0.4544972]
[1659292245763,0.0316,23736.0,23726.0,0.1]
[1659292245764,0.304152,23735.0,23726.0,0.1]
[1659292245993,0.304152,23735.0,23722.0,0.058]
[1659292245994,0.05,23727.0,23722.0,0.058]
[1659292246244,0.45725733,23723.0,23722.0,0.058]
[1659292246469,0.7,23722.0,23705.0,1.2089]
[1659292246702,0.05,23719.0,23706.0,0.45003703]
[1659292246942,0.05,23719.0,23708.0,0.1]
[1659292246943,0.43887733,23718.0,23708.0,0.1]
[1659292247170,0.40725733,23717.0,23709.0,0.40725733]
[1659292247401,0.12769195,23723.0,23711.0,0.04999577]
[1659292247678,0.05,23721.0,23712.0,0.05487958]
[1659292247910,0.05,23714.0,23704.0,0.4421]
[1659292248141,0.03163,23713.0,23704.0,0.04607762]
[1659292248369,0.02663,23713.0,23701.0,0.31931792]
[1659292248602,0.40725733,23712.0,23704.0,0.4071902]
[1659292248832,0.08163,23711.0,23704.0,0.3656702]
[1659292249069,0.03162,23722.0,23705.0,1.45774133]
[1659292249313,0.009,23720.0,23710.0,0.04999577]
[1659292249551,0.009,23720.0,23711.0,1.00223676]
[1659292249782,0.009,23720.0,23717.0,0.1]
[1659292250016,0.009,23720.0,23718.0,0.00367406]
[1659292250312,0.09208,23720.0,23718.0,0.00367406]
[1659292250540,0.12307911,23720.0,23717.0,0.1]
[1659292250773,0.08308,23720.0,23717.0,0.1]
[1659292250995,0.08308,23720.0,23718.0,0.00408941]
[1659292251226,0.11407911,23720.0,23717.0,0.1]
[1659292251475,0.49033733,23720.0,23717.0,0.1]
[1659292251715,1.40725733,23719.0,23709.0,0.12429994]
[1659292251931,0.74302933,23718.0,23709.0,0.078]
[1659292252174,0.71140933,23717.0,23709.0,0.078]
[1659292252390,0.05,23730.0,23709.0,0.078]
[1659292252391,0.71140933,23716.0,23709.0,0.178]
[1659292252617,0.40725733,23715.0,23709.0,0.5421]
[1659292252891,0.05,23714.0,23709.0,0.099669]
[1659292253135,0.05,23714.0,23702.0,0.0527]
[1659292253136,0.43888733,23713.0,23701.0,0.03164]
[1659292253371,0.05,23708.0,23701.0,0.43226]
[1659292253609,0.05,23704.0,23697.0,0.0022]
[1659292253844,0.40725733,23703.0,23697.0,0.0022]
[1659292254566,0.40725733,23704.0,23698.0,0.4421]
[1659292254800,0.08163,23708.0,23698.0,0.83935733]
[1659292255032,0.76140933,23707.0,23697.0,0.04924976]
[1659292255265,0.45725733,23703.0,23697.0,0.0022]
[1659292255519,0.05,23700.0,23697.0,0.0022]
[1659292255791,0.05,23700.0,23677.0,0.04718386]
[1659292255792,0.05,23695.0,23677.0,0.04718386]
[1659292256040,0.05,23689.0,23677.0,0.04092637]
[1659292256271,0.05,23689.0,23675.0,0.2908]
[1659292256272,0.71080933,23688.0,23678.0,0.04730517]
[1659292256499,0.74306933,23687.0,23675.0,0.07691988]
[1659292256717,0.74240844,23686.0,23683.0,0.0022]
[1659292256974,0.79307933,23685.0,23683.0,0.0022]
[1659292257190,1.06140933,23684.0,23683.0,0.0022]
[1659292257422,0.71140933,23684.0,23683.0,0.0022]
[1659292257641,0.82407844,23684.0,23683.0,0.0022]
[1659292257870,0.82407844,23684.0,23683.0,0.00587406]
[1659292257871,0.71140933,23684.0,23683.0,0.00587406]
[1659292258146,0.71140933,23684.0,23683.0,0.0022]
[1659292258147,0.30415,23684.0,23683.0,0.0022]
[1659292258389,1.0,23683.0,23675.0,0.0022]
[1659292258615,0.71140733,23682.0,23675.0,0.0022]
[1659292258855,0.05,23680.0,23675.0,0.0022]
[1659292259091,0.03750273,23677.0,23675.0,0.0022]
[1659292259323,0.44476006,23677.0,23675.0,0.00587406]
[1659292259541,0.16519468,23671.0,23660.0,0.2813919]
[1659292259775,0.16519468,23671.0,23652.0,0.31668127]
[1659292259776,0.16519468,23671.0,23654.0,0.5]
[1659292259777,0.40725733,23668.0,23654.0,0.5]
[1659292260009,0.40725733,23668.0,23660.0,0.0011]
[1659292260223,0.12769195,23671.0,23661.0,0.45729533]
[1659292260224,0.40725733,23670.0,23661.0,0.45729533]
[1659292260452,0.43494928,23670.0,23662.0,0.45185916]
[1659292260799,0.03168,23673.0,23661.0,0.01469727]
[1659292260800,0.45725733,23669.0,23661.0,0.01469727]
[1659292261033,0.40725733,23668.0,23661.0,0.4536546]
[1659292261273,0.40725733,23668.0,23661.0,0.01469727]
[1659292261503,0.40725733,23666.0,23661.0,0.0022]
[1659292261741,0.40725733,23662.0,23661.0,0.0022]
[1659292262001,1.61528322,23662.0,23661.0,0.0022]
[1659292262260,1.61528322,23662.0,23647.0,0.05552919]
[1659292262261,1.17867482,23661.0,23647.0,0.05552919]
[1659292262495,0.40725733,23654.0,23644.0,0.1]
[1659292262722,1.12769195,23661.0,23645.0,0.018399]
[1659292262723,0.40725733,23650.0,23645.0,0.018399]
[1659292262954,0.40725733,23650.0,23644.0,0.1]
[1659292262955,0.43494928,23650.0,23644.0,0.1]
[1659292263191,0.40725733,23654.0,23645.0,0.43897733]
[1659292263421,0.40725733,23654.0,23646.0,0.50725733]
[1659292263674,0.40725733,23659.0,23647.0,0.50006359]
[1659292263915,0.40725733,23659.0,23649.0,0.00749727]
[1659292264144,0.40725733,23655.0,23649.0,0.13920727]
[1659292264365,0.40725733,23653.0,23649.0,0.1]
[1659292264843,0.40725733,23653.0,23642.0,0.00059953]
[1659292264844,0.44976006,23650.0,23642.0,0.00059953]
[1659292265086,0.40725733,23648.0,23640.0,0.05]
[1659292265313,0.40725733,23652.0,23642.0,0.45973025]
[1659292265542,0.43494928,23652.0,23643.0,0.48510572]
[1659292265962,0.044,23661.0,23654.0,0.05]
[1659292265998,0.044,23661.0,23652.0,0.05]
[1659292266207,0.044,23661.0,23657.0,0.05]
[1659292266445,0.044,23661.0,23660.0,0.9632]
[1659292266678,0.00795003,23663.0,23660.0,1.41553033]
[1659292266909,0.00795003,23663.0,23658.0,0.54893433]
[1659292266910,0.00795003,23663.0,23658.0,0.1]
[1659292267245,0.40725733,23662.0,23659.0,0.01837]
[1659292267473,0.90725733,23660.0,23659.0,0.01837]
[1659292267707,0.90725733,23660.0,23652.0,0.05871]
[1659292267708,0.05,23656.0,23654.0,0.19479819]
[1659292267942,1.7792468,23655.0,23654.0,0.19479819]
[1659292268173,0.3,23653.0,23652.0,0.027]
[1659292268403,0.70725733,23653.0,23652.0,0.027]
[1659292268639,0.70725733,23653.0,23652.0,0.01]
[1659292268640,1.09313233,23653.0,23652.0,0.01]
[1659292268856,0.01,23652.0,23640.0,0.99233]
[1659292269097,0.44725733,23647.0,23636.0,0.9606]
[1659292269339,0.01,23652.0,23636.0,0.9606]
[1659292269340,0.40725733,23646.0,23640.0,0.01]
[1659292269576,0.40725733,23646.0,23639.0,0.40945733]
[1659292269577,0.40725733,23646.0,23639.0,0.0022]
[1659292269839,0.40725733,23646.0,23630.0,0.0022]
[1659292269840,0.04,23639.0,23630.0,0.0022]
[1659292270076,0.40725733,23637.0,23633.0,0.01]
[1659292270323,0.40725733,23637.0,23634.0,0.01360148]
[1659292270564,0.07172,23645.0,23635.0,0.01]
[1659292270565,0.04564641,23643.0,23635.0,0.01]
[1659292270807,0.05898477,23652.0,23642.0,0.9632]
[1659292271078,0.05898477,23652.0,23635.0,0.40725733]
[1659292271079,0.05896879,23650.0,23641.0,0.01]
[1659292271307,0.40725733,23649.0,23641.0,0.01]
[1659292271531,0.045,23639.0,23638.0,0.04495014]
[1659292271769,0.045,23639.0,23633.0,0.05319218]
[1659292271770,0.40725733,23639.0,23633.0,0.05319218]
[1659292271998,0.40725733,23639.0,23630.0,0.0072]
[1659292271999,0.43494928,23639.0,23632.0,0.015]
[1659292272238,0.045,23637.0,23632.0,0.015]
[1659292272468,0.045,23634.0,23632.0,0.01488815]
[1659292272706,1.33359399,23633.0,23632.0,0.01488815]
[1659292272943,0.71142233,23633.0,23632.0,0.01488815]
[1659292273690,0.76533399,23633.0,23632.0,0.01488815]
[1659292273927,1.045,23631.0,23630.0,0.0022]
[1659292274162,1.045,23631.0,23625.0,0.0122]
[1659292274163,0.04830919,23627.0,23625.0,0.0122]
[1659292274407,0.17264195,23625.0,23622.0,0.0022]
[1659292274642,0.17264195,23625.0,23618.0,0.0011]
[1659292274643,0.0472,23623.0,23618.0,0.0011]
[1659292274893,0.05414095,23621.0,23618.0,0.0011]
[1659292275132,0.05414095,23621.0,23609.0,1.174]
[1659292275133,0.40725733,23620.0,23612.0,0.03676]
[1659292275379,0.40725733,23620.0,23615.0,0.005]
[1659292275628,0.3,23622.0,23610.0,1.49237]
[1659292275632,0.12769195,23624.0,23618.0,0.005]
[1659292275862,0.40725733,23623.0,23618.0,0.11877]
[1659292276118,0.045,23620.0,23612.0,0.1]
[1659292276353,0.40725733,23623.0,23609.0,0.0011]
[1659292276354,0.045,23617.0,23609.0,0.0011]
[1659292276594,0.045,23617.0,23599.0,0.005]
[1659292276595,0.045,23615.0,23595.0,0.69512641]
[1659292276832,0.045,23615.0,23591.0,0.12139561]
[1659292276833,0.05,23592.0,23591.0,0.12139561]
[1659292277073,0.008366,23592.0,23591.0,0.12139561]
[1659292277343,0.008366,23592.0,23582.0,0.02]
[1659292277344,0.25635668,23592.0,23584.0,0.1]
[1659292277580,0.25635668,23592.0,23570.0,0.0927]
[1659292277581,1.325555,23591.0,23570.0,0.0927]
[1659292277848,1.325555,23591.0,23571.0,0.4371]
[1659292277849,0.61289068,23590.0,23571.0,0.4371]
[1659292278082,0.61289068,23590.0,23571.0,0.48404206]
[1659292278083,0.06783889,23586.0,23571.0,0.48404206]
[1659292278308,0.40725733,23584.0,23572.0,0.40725733]
[1659292278566,0.40725733,23582.0,23569.0,0.05]